bitfinex/quotes_ETHUSD_20260310
["timestamp","ask_amount","ask_price","bid_price","bid_amount"]
[1773152746148,1.2343535,2025.4,2024.3,0.49482965]
[1773152746342,0.45433885,2025.3,2024.3,0.49482965]
[1773152746646,0.45433885,2025.3,2024.3,0.967]
[1773152746867,0.45433885,2025.3,2024.4,1.2349338]
[1773152747178,1.68877754,2025.3,2024.4,1.2349338]
[1773152747382,0.45433885,2025.0,2024.4,1.2349338]
[1773152747553,0.45433885,2025.0,2024.2,1.23500815]
[1773152748962,0.45433885,2024.8,2024.0,1.23517786]
[1773152749873,0.45433885,2024.8,2023.7,4.94120749]
[1773152749874,0.45433885,2024.7,2023.7,4.94120749]
[1773152750389,0.45433885,2024.7,2023.8,0.04941199]
[1773152750550,0.45433885,2024.7,2023.7,4.94120749]
[1773152750877,0.45433885,2024.7,2023.8,0.04941199]
[1773152751276,0.45433885,2024.6,2023.9,1.23523889]
[1773152751780,2.44277078,2025.0,2023.9,1.23523889]
[1773152751781,0.45433885,2025.0,2023.9,1.23523889]
[1773152753085,0.45433885,2025.0,2023.9,1.71024411]
[1773152753289,0.001,2025.1,2024.2,0.47500522]
[1773152753878,2.89810963,2025.1,2024.1,3.72803051]
[1773152754078,2.89810963,2025.1,2024.2,0.968]
[1773152754079,0.45433885,2025.0,2024.2,0.968]
[1773152754293,0.001,2025.1,2024.2,1.44300522]
[1773152754586,0.45533885,2025.1,2024.2,1.44300522]
[1773152754766,0.45533885,2025.1,2024.2,0.968]
[1773152755096,0.45533885,2025.1,2024.2,0.47500522]
[1773152755269,0.45533885,2025.1,2024.3,1.23499481]
[1773152755584,0.001,2025.1,2024.3,1.71000003]
[1773152757282,0.001,2025.1,2024.3,2.67800003]
[1773152758089,0.45433885,2025.5,2024.5,0.47500522]
[1773152758288,0.45433885,2025.5,2024.5,0.52440013]
[1773152759387,0.45433885,2025.5,2024.5,0.47500522]
[1773152759856,0.45433885,2025.5,2024.6,1.70981703]
[1773152760060,1.68865048,2025.5,2024.6,1.70981703]
[1773152760267,0.45433885,2025.5,2024.6,1.70981703]
[1773152760675,1.68861562,2025.5,2024.6,1.72746757]
[1773152760889,0.45433885,2025.4,2024.6,1.28420428]
[1773152761196,0.45433885,2025.4,2024.6,1.23481181]
[1773152762278,1.68872387,2025.3,2024.4,4.93924725]
[1773152762877,0.001,2025.2,2024.4,4.93924725]
[1773152763078,0.45533885,2025.2,2024.4,4.93924725]
[1773152763596,0.49914552,2025.1,2024.3,4.93974308]
[1773152763795,0.001,2025.2,2024.3,5.39978134]
[1773152764293,1.73365245,2025.1,2024.3,4.93974308]
[1773152764497,0.49914552,2025.1,2024.4,0.04939735]
[1773152764897,1.73365245,2025.1,2024.3,4.93974308]
[1773152765197,0.49914552,2025.0,2024.0,0.46113826]
[1773152765385,0.49914552,2025.0,2024.1,4.94022329]
[1773152765696,0.49914552,2025.0,2024.0,1.23621684]
[1773152765697,0.49914552,2024.7,2024.0,1.23626755]
[1773152765881,0.49914552,2024.7,2024.0,1.23626897]
[1773152765882,0.49914552,2024.6,2024.0,1.23626897]
[1773152766283,1.23468984,2024.8,2024.2,1.23505582]
[1773152766593,0.49914552,2024.9,2024.3,0.04939979]
[1773152766984,1.2345305,2025.1,2024.3,0.04939979]
[1773152767183,1.50014552,2025.2,2024.3,0.04939979]
[1773152767570,2.73460313,2025.2,2024.2,1.69509408]
[1773152768098,0.001,2025.2,2024.4,0.46003826]
[1773152768270,7.62038695,2026.0,2024.6,2.44026515]
[1773152768271,0.49914552,2025.7,2024.6,2.44026515]
[1773152768466,0.49914552,2025.8,2024.7,1.74417911]
[1773152768672,0.49914552,2025.8,2024.7,2.66478908]
[1773152769091,0.49914552,2025.8,2024.8,0.46003826]
[1773152769878,0.1347422,2026.0,2024.9,0.46003826]
[1773152770087,6.26798908,2026.4,2024.7,2.20475082]
[1773152770088,0.33410245,2026.4,2025.2,0.46003826]
[1773152770273,0.33410245,2026.4,2025.7,1.23414128]
[1773152770274,1.56781799,2026.4,2025.7,1.23414128]
[1773152770519,0.33410245,2026.4,2025.7,1.23414128]
[1773152770690,2.06697244,2026.4,2025.6,1.23416573]
[1773152771196,0.33410245,2026.4,2025.6,1.69420399]
[1773152771398,1.56782668,2026.4,2025.6,1.69420399]
[1773152772084,0.33410245,2026.4,2025.6,1.69420399]
[1773152772427,1.56781834,2026.4,2025.7,1.23410466]
[1773152772780,0.33410245,2026.4,2025.7,1.23410466]
[1773152772979,0.33410245,2026.4,2025.8,0.46003826]
[1773152773880,1.56782272,2026.4,2025.8,0.46003826]
[1773152774084,0.33410245,2026.4,2025.8,0.46003826]
[1773152774485,0.33410245,2026.4,2025.9,1.23401944]
[1773152775117,0.33410245,2026.4,2025.9,1.6940577]
[1773152775504,0.77791303,2026.6,2026.0,0.46003826]
[1773152775701,2.44026515,2027.4,2026.0,0.46003826]
[1773152775702,0.49914552,2027.6,2026.4,0.46003826]
[1773152775900,0.49914552,2027.1,2026.1,1.43103826]
[1773152776325,0.001,2026.2,2026.1,0.46003826]
[1773152776524,0.998,2027.3,2026.1,0.46003826]
[1773152776825,1.23302719,2027.6,2026.4,0.46003826]
[1773152777029,2.93941067,2027.5,2026.4,0.46003826]
[1773152777184,0.49914552,2027.5,2026.4,0.46003826]
[1773152777521,0.49914552,2027.5,2026.4,1.43103826]
[1773152777686,0.49914552,2027.5,2026.4,0.46003826]
[1773152778092,1.23302719,2027.6,2026.2,1.23383673]
[1773152778093,0.49914552,2027.3,2026.2,1.23383673]
[1773152778319,5.92993923,2027.8,2026.2,1.23383673]
[1773152778320,0.49914552,2028.2,2026.9,0.46003826]
[1773152778491,0.49914552,2027.9,2026.9,0.46003826]
[1773152778696,1.73200872,2027.8,2026.4,0.46003826]
[1773152779000,1.73200872,2027.8,2026.6,0.46003826]
[1773152779204,1.73200872,2027.8,2026.5,0.971]
[1773152779205,2.22984833,2027.9,2026.8,0.46003826]
[1773152779413,2.22981179,2027.9,2026.8,0.46003826]
[1773152779618,2.2298085,2027.9,2026.8,0.46003826]
[1773152780426,2.2298085,2027.9,2026.9,0.46003826]
[1773152780631,2.2298085,2027.9,2027.0,1.23334977]
[1773152781120,2.2298085,2027.9,2026.5,5.90537341]
[1773152781121,0.49914552,2027.7,2026.6,1.69363147]
[1773152782231,0.49914552,2027.7,2026.6,0.46003826]
[1773152782530,0.49914552,2027.8,2026.4,0.46003826]
[1773152782828,1.73206952,2027.7,2026.5,1.69369234]
[1773152783124,1.232924,2027.7,2026.6,0.46003826]
[1773152783331,0.49914552,2027.6,2026.6,0.46003826]
[1773152783627,1.23290472,2027.8,2026.9,0.46003826]
[1773152783923,0.49914552,2028.4,2027.0,0.46003826]
[1773152784129,5.42865355,2028.7,2027.3,0.46003826]
[1773152784301,0.49914552,2028.5,2027.3,0.46003826]
[1773152784703,1.23249852,2028.4,2027.4,1.23310644]
[1773152785240,1.73146178,2028.7,2027.5,0.46003826]
[1773152785917,0.49914552,2028.6,2027.5,0.46003826]
[1773152786098,0.49914552,2028.6,2027.4,1.23310644]
[1773152786498,2.93941067,2028.4,2027.4,1.23310644]
[1773152786922,1.23255928,2028.3,2027.4,1.23310644]
[1773152787498,1.23255928,2028.3,2027.3,2.204132]
[1773152787499,0.49914552,2028.2,2027.3,2.204132]
[1773152788130,0.49914552,2028.2,2027.3,0.971]
[1773152788318,0.49914552,2028.2,2027.3,2.20416359]
[1773152788716,2.22855928,2028.3,2027.4,0.46003826]
[1773152788927,1.23231626,2028.7,2027.6,1.2329848]
[1773152789134,1.56490769,2029.0,2028.0,0.46003826]
[1773152789436,0.49914552,2028.9,2027.7,0.46003826]
[1773152791007,0.33276927,2029.0,2028.3,1.23255928]
[1773152791201,1.23212152,2029.1,2028.3,1.69259754]
[1773152792013,2.44026515,2029.0,2027.5,7.37211331]
[1773152792211,2.93941067,2028.8,2027.5,7.83215157]
[1773152792418,0.49914552,2028.7,2027.6,0.03282095]
[1773152793147,2.44026515,2028.5,2027.6,1.23298446]
[1773152793363,2.44026515,2028.5,2027.4,1.23305676]
[1773152793640,1.73152252,2028.6,2027.5,0.04932182]
[1773152793641,1.49414552,2028.4,2027.5,0.04932182]
[1773152793810,1.49414552,2028.4,2027.4,0.49995074]
[1773152793811,0.995,2028.4,2027.4,0.49995074]
[1773152794130,0.995,2028.4,2027.5,0.49995074]
[1773152794511,0.995,2028.4,2027.6,0.04931939]
[1773152794829,0.995,2028.4,2027.5,0.49995074]
[1773152795227,2.22755652,2028.4,2027.6,1.2329848]
[1773152795426,2.22755652,2028.4,2027.6,1.73293554]
[1773152795830,2.22755652,2028.4,2027.7,0.04931696]
[1773152796007,0.995,2028.4,2027.7,0.04931696]
[1773152796207,2.22750252,2028.4,2027.7,0.04931696]
[1773152796513,2.22750252,2028.4,2027.6,0.49995074]
[1773152796832,2.22750252,2028.4,2027.4,1.23306601]
[1773152797036,2.76708754,2028.3,2027.2,0.49995074]
[1773152797235,1.23262005,2028.2,2027.3,0.04932669]
[1773152797410,1.55944244,2028.2,2027.3,0.04932669]
[1773152797736,1.55944244,2028.2,2027.2,0.04932912]
[1773152797939,2.65660474,2027.6,2026.4,1.23368654]
[1773152798113,2.65660474,2027.6,2026.5,0.04934616]
[1773152798114,0.995,2027.5,2026.5,0.04934616]
[1773152798327,0.995,2027.5,2026.5,0.5492969]
[1773152798528,0.995,2027.5,2026.5,0.49995074]
[1773152798849,0.27749327,2027.7,2026.4,0.49995074]
[1773152799051,2.44026515,2027.1,2026.3,0.0011]
[1773152799349,1.23353234,2026.7,2026.3,0.0011]
[1773152799551,0.27749327,2027.4,2026.3,0.0011]
[1773152799714,2.22816726,2027.3,2026.3,0.0011]
[1773152799921,4.66843241,2027.3,2026.3,0.05045103]
[1773152800137,2.44026515,2027.0,2026.3,0.05045103]
[1773152800328,2.44026515,2027.0,2026.3,0.0011]
[1773152800530,2.44026515,2026.7,2026.3,0.0011]
[1773152800730,3.43326515,2026.7,2026.3,0.0011]
[1773152801031,3.43326515,2026.7,2025.5,3.62275113]
[1773152801032,3.71075842,2026.7,2025.5,3.62275113]
[1773152801250,1.27049327,2026.7,2025.5,3.62275113]
[1773152801548,2.22759321,2026.6,2025.6,0.54931882]
[1773152802053,2.44026515,2026.5,2025.5,3.62278465]
[1773152802257,2.44026515,2026.5,2025.5,3.62279005]
[1773152802415,0.994,2026.5,2025.6,0.49995074]
[1773152803023,0.994,2026.5,2025.7,0.04936565]
[1773152803223,2.44026515,2026.3,2025.5,3.6227824]
[1773152803534,0.994,2026.3,2025.5,4.12273314]
[1773152803736,0.994,2026.3,2025.5,2.88847899]
[1773152803931,0.994,2026.3,2025.5,4.12274043]
[1773152804216,0.994,2026.3,2025.5,1.73421218]
[1773152804439,3.43426515,2026.3,2025.5,1.73421104]
[1773152804642,3.43426515,2026.3,2025.5,0.49995074]
[1773152805466,1.23401944,2025.9,2025.2,1.7343831]
[1773152805749,1.23401944,2025.9,2025.2,1.78377187]
[1773152806151,2.71665842,2026.3,2025.2,1.78376773]
[1773152806366,1.23383673,2026.2,2025.3,0.54932614]
[1773152806723,1.23359321,2026.6,2025.5,0.46114478]
[1773152806924,1.23359321,2026.6,2025.6,0.04936808]
[1773152806925,2.22759321,2026.6,2025.6,0.04936808]
[1773152807421,5.21076611,2026.7,2025.9,0.46114478]
[1773152807422,1.28286161,2026.7,2025.9,0.46114478]
[1773152807823,1.28286161,2026.7,2025.5,0.46114478]
[1773152807824,2.44026515,2026.1,2025.5,0.46114478]
[1773152808029,2.44026515,2026.1,2025.5,1.69540658]
[1773152808253,0.27639327,2026.6,2025.5,1.69540658]
[1773152808254,2.44026515,2026.4,2025.5,1.69540658]
[1773152808752,2.44026515,2026.4,2025.5,1.69540472]
[1773152809160,1.28286161,2026.7,2025.5,1.69540472]
[1773152809161,0.04932927,2026.5,2025.6,0.46114478]
[1773152809366,0.04932927,2026.6,2025.8,0.46114478]
[1773152809524,1.23304562,2027.5,2025.9,0.46114478]
[1773152809730,2.44026515,2027.3,2025.9,0.46114478]
[1773152811242,0.994,2027.3,2026.4,0.46114478]
[1773152811626,1.23322809,2027.2,2026.4,1.69481702]
[1773152812155,2.22720712,2027.3,2026.5,0.46114478]
[1773152812327,0.065536,2027.7,2026.5,0.46114478]
[1773152812328,2.22699342,2027.6,2026.5,0.46114478]
[1773152812526,2.44026515,2027.5,2026.5,0.46114478]
[1773152814053,0.994,2027.5,2026.7,0.46114478]
[1773152814737,3.61199008,2027.8,2026.7,0.46114478]
[1773152815736,2.44026515,2027.7,2026.7,0.46114478]
[1773152816034,1.2329848,2027.6,2026.7,0.46114478]
[1773152816430,0.001,2027.2,2026.7,0.46114478]
[1773152817067,0.001,2027.2,2026.7,1.69467201]
[1773152817232,0.001,2027.2,2026.7,0.46114478]
[1773152817564,0.001,2027.2,2026.5,0.46114478]
[1773152818044,1.23422809,2027.2,2026.5,1.69479869]
[1773152819432,0.001,2027.2,2026.6,0.46114478]
[1773152819637,0.001,2027.2,2026.4,1.69485974]
[1773152819949,0.001,2027.2,2026.4,0.51049337]
[1773152820148,0.001,2027.2,2026.5,0.46114478]
[1773152820346,0.995,2027.2,2026.5,0.46114478]
[1773152820956,0.995,2027.2,2026.1,2.73935655]
[1773152820957,1.32072254,2027.2,2026.2,0.51049824]
[1773152821159,2.44026515,2026.7,2025.9,1.69515105]
[1773152821371,2.44026515,2026.7,2025.9,1.69515459]
[1773152821531,0.32572254,2027.1,2026.0,0.51050312]
[1773152821844,0.994,2027.1,2026.0,0.51050312]
[1773152822354,0.001,2027.2,2026.4,0.46114478]
[1773152822533,0.001,2027.2,2026.6,0.46114478]
[1773152822741,1.23423192,2027.2,2026.6,0.46114478]
[1773152822939,1.23423131,2027.2,2026.6,0.46114478]
[1773152823137,3.67449646,2027.2,2026.3,0.46114478]
[1773152823341,2.44026515,2026.9,2026.0,1.69507642]
[1773152823556,3.43426515,2026.9,2026.0,1.69507642]
[1773152823763,3.43426515,2026.9,2026.0,1.74445574]
[1773152823962,3.43426515,2026.9,2026.0,0.46114478]
[1773152824140,3.43426515,2026.9,2026.0,1.69510176]
[1773152824342,3.43426515,2026.9,2026.0,1.7444601]
[1773152824542,1.23347148,2026.8,2026.0,1.7444601]
[1773152825254,2.44026515,2026.6,2025.7,0.47978683]
[1773152825465,6.43972432,2026.8,2025.7,0.47978683]
[1773152825466,0.32572254,2026.7,2025.7,0.47978683]
[1773152826167,0.32572254,2026.7,2025.6,0.52915491]
[1773152826356,0.994,2026.6,2025.7,0.47978683]
[1773152826557,1.23371496,2026.4,2025.7,0.47978683]
[1773152827052,2.44026515,2026.2,2025.5,0.0011]
[1773152827541,2.43829904,2026.3,2025.5,0.0011]
[1773152827748,2.43829904,2026.0,2025.1,0.47978683]
[1773152827945,2.43829904,2025.7,2024.8,0.48088683]
[1773152828172,2.43829904,2025.7,2024.8,1.71556401]
[1773152828472,1.23420221,2025.6,2024.9,0.04938515]
[1773152828677,1.23420221,2025.6,2024.8,0.0011]
[1773152829361,1.23418721,2025.7,2024.9,0.47978683]
[1773152829567,0.994,2025.6,2024.9,0.47978683]
[1773152830660,1.23426314,2025.5,2024.8,1.23578983]
[1773152830992,1.23426314,2025.5,2025.0,0.0011]
[1773152831677,0.995,2025.6,2025.0,0.48088683]
[1773152832557,0.995,2025.6,2024.8,0.0022]
[1773152832558,2.43829904,2025.2,2024.8,0.0022]
[1773152833081,1.23432408,2025.4,2024.8,0.0022]
[1773152833288,2.22932408,2025.4,2024.8,0.0022]
[1773152833490,2.22932408,2025.4,2024.8,0.48198683]
[1773152833853,2.22932408,2025.4,2024.8,0.0022]
[1773152834461,2.22932408,2025.4,2024.5,1.7157358]
[1773152834947,2.22932408,2025.4,2024.6,0.5291793]
[1773152835164,5.07685898,2025.8,2024.6,0.5291793]
[1773152835483,0.995,2025.7,2024.6,0.47978683]
[1773152836373,1.23410756,2025.8,2024.6,0.47978683]
[1773152836677,6.50731275,2026.8,2024.8,0.47978683]
[1773152836678,1.23389763,2026.1,2024.8,0.47978683]
[1773152836975,0.996,2026.0,2024.8,0.47978683]
[1773152837180,2.43829904,2025.9,2024.8,0.47978683]
[1773152837481,0.996,2026.0,2025.0,0.47978683]
[1773152837777,0.996,2026.0,2025.1,0.5291671]
[1773152839154,1.23401944,2025.9,2025.2,1.23444598]
[1773152839352,2.43829904,2026.2,2025.3,0.47978683]
[1773152839566,0.996,2026.1,2025.3,0.47978683]
[1773152840979,0.996,2026.1,2025.1,1.23446174]
[1773152841177,0.996,2026.1,2025.3,0.47978683]
[1773152841877,1.23381152,2026.3,2025.3,0.47978683]
[1773152842079,2.23081152,2026.3,2025.3,0.47978683]
[1773152843368,2.23081152,2026.3,2025.5,0.47978683]
[1773152843757,4.9948331,2026.3,2025.2,1.71420953]
[1773152843957,2.43829904,2026.0,2025.2,0.47978683]
[1773152844158,2.43829904,2026.0,2025.3,0.47978683]
[1773152844380,2.43829904,2026.2,2025.3,0.47978683]
[1773152844581,2.76402158,2026.2,2025.1,1.23446377]
[1773152844775,2.43829904,2025.8,2025.0,1.76373349]
[1773152844971,0.997,2025.7,2025.0,0.47978683]
[1773152845467,2.23114293,2025.7,2025.1,0.47978683]
[1773152845874,2.23114293,2025.7,2024.9,1.28396643]
[1773152845875,2.23114293,2025.7,2024.9,1.28400113]
[1773152846056,2.23114293,2025.7,2024.9,1.23461598]
[1773152846380,2.23114293,2025.7,2024.8,1.71553531]
[1773152846771,2.43829904,2025.5,2024.8,1.71556699]
[1773152847083,2.23114293,2025.7,2024.9,0.47978683]
[1773152847462,1.23414293,2025.7,2025.0,1.2345679]
[1773152847667,0.997,2025.6,2025.0,1.2345679]
[1773152847874,1.23512977,2025.8,2025.1,0.47978683]
[1773152848180,0.997,2025.7,2025.1,0.47978683]
[1773152849388,0.001,2025.8,2025.1,0.47978683]
[1773152849589,0.001,2025.8,2025.3,0.47978683]
[1773152849883,0.001,2025.8,2025.1,1.23447153]
[1773152850076,0.001,2025.8,2025.2,0.47978683]
[1773152850590,0.001,2025.8,2025.3,0.0493754]
[1773152850785,0.001,2025.8,2025.3,0.47978683]
[1773152851667,0.001,2025.8,2025.4,1.76348387]
[1773152851994,0.001,2025.8,2025.1,1.71429376]
[1773152852366,0.001,2025.8,2025.2,0.04937783]
[1773152852585,0.001,2025.8,2024.8,0.0011]
[1773152852586,2.43829904,2025.6,2024.8,0.48088683]
[1773152852901,0.32672254,2025.8,2024.8,0.48088683]
[1773152852902,0.998,2025.5,2024.8,1.71556582]
[1773152853058,0.998,2025.6,2024.9,0.47978683]
[1773152853257,0.001,2025.8,2024.9,0.52917198]
[1773152853492,2.43829904,2025.7,2024.9,0.47978683]
[1773152853696,2.43829904,2025.7,2025.0,1.7004822]
[1773152853892,0.001,2025.8,2025.1,0.51529457]
[1773152853893,1.23508679,2025.8,2025.1,0.51529457]
[1773152854056,2.43829904,2025.6,2025.0,1.2345679]
[1773152854262,1.23508679,2025.8,2025.0,0.4659143]
[1773152855588,1.23508679,2025.8,2025.1,0.51529457]
[1773152855794,2.43829904,2025.6,2025.0,1.23453083]
[1773152856167,1.23508679,2025.8,2024.9,1.70049778]
[1773152856381,1.23508679,2025.8,2025.0,0.04938271]
[1773152856578,1.23508679,2025.8,2025.0,0.4659143]
[1773152856861,0.998,2025.7,2025.0,0.51639701]
[1773152857060,0.001,2025.6,2025.0,0.51639701]
[1773152857587,0.001,2025.6,2025.0,0.4670143]
[1773152857768,0.001,2025.6,2025.1,1.23450693]
[1773152857973,0.001,2025.6,2024.8,4.93974528]
[1773152857974,2.43829904,2025.5,2024.8,0.0011]
[1773152858291,2.43829904,2025.5,2024.8,1.2357792]
[1773152859272,2.43829904,2025.5,2024.8,0.0011]
[1773152859473,2.43829904,2025.2,2024.5,0.0011]
[1773152859676,3.43629904,2025.2,2024.5,1.23596893]
[1773152859863,1.23450693,2025.1,2024.5,1.70188323]
[1773152860066,2.2324787,2025.2,2024.6,0.51530677]
[1773152860490,1.2344787,2025.2,2024.6,0.51530677]
[1773152860692,2.2324787,2025.2,2024.6,0.4659143]
[1773152862672,2.2324787,2025.2,2024.6,1.70067209]
[1773152864493,0.001,2025.6,2024.7,0.51530433]
[1773152864714,0.001,2025.6,2024.9,0.4659143]
[1773152864868,0.001,2025.6,2025.1,0.4659143]
[1773152865479,0.001,2025.8,2025.1,0.4659143]
[1773152866702,0.001,2025.8,2025.2,1.23444598]
[1773152866900,0.001,2025.8,2025.3,0.49645595]
[1773152867203,7.37263537,2026.7,2025.4,0.49645595]
[1773152867495,1.0,2026.6,2025.4,0.49645595]
[1773152867874,2.43829904,2026.4,2025.4,0.49645595]
[1773152868472,1.0,2026.6,2025.4,0.49645595]
[1773152868716,2.23360158,2026.6,2025.6,0.49645595]
[1773152868920,4.93433633,2026.7,2025.6,0.49645595]
[1773152868921,1.23358027,2026.7,2025.6,0.49645595]
[1773152869202,2.23358027,2026.7,2025.6,0.49645595]
[1773152870409,2.56030281,2026.7,2025.6,0.49645595]
[1773152871180,2.43829904,2026.5,2025.7,0.49645595]
[1773152872786,2.43929904,2026.5,2025.7,0.49645595]
[1773152873012,2.76602158,2026.5,2025.7,0.49645595]
[1773152873213,1.23371496,2026.4,2025.7,1.73059145]
[1773152873510,1.0,2026.4,2025.8,0.49645595]
[1773152874491,1.23469745,2026.5,2025.8,0.49645595]
[1773152874492,0.001,2026.5,2025.8,0.49645595]
[1773152874908,1.23466519,2026.5,2025.8,0.49645595]
[1773152875108,0.001,2026.5,2025.8,0.49645595]
[1773152875602,0.001,2026.5,2025.9,0.49645595]
[1773152877478,0.001,2026.5,2026.1,0.49645595]
[1773152878080,0.001,2026.5,2025.9,1.23399519]
[1773152878602,0.001,2026.5,2025.9,1.73047063]
[1773152878807,2.43829904,2026.2,2025.7,0.49645595]
[1773152878987,3.43929904,2026.2,2025.2,0.49645595]
[1773152879516,1.23389763,2026.1,2025.3,1.73084097]
[1773152879715,1.23389763,2026.1,2025.4,0.49645595]
[1773152879911,2.43829904,2025.9,2025.1,5.43431806]
[1773152880115,1.56062017,2026.1,2025.1,5.43431806]
[1773152880314,1.56062017,2026.1,2025.0,0.0011]
[1773152880315,2.43829904,2025.6,2025.0,0.0011]
[1773152880506,3.43929904,2025.6,2025.0,0.0011]
[1773152881306,3.43929904,2025.6,2025.0,1.235663]
[1773152881605,0.32672254,2025.8,2025.2,0.49645595]
[1773152881606,2.23519147,2025.7,2025.2,0.49645595]
[1773152881810,1.001,2025.7,2025.2,0.49645595]
[1773152882318,4.93567861,2026.1,2025.2,0.49645595]
[1773152882728,7.70070019,2026.1,2025.2,0.49645595]
[1773152882918,2.43829904,2025.8,2025.2,0.49645595]
[1773152883123,5.26240115,2026.1,2025.2,0.49645595]
[1773152883824,5.26240115,2026.1,2025.3,1.68791664]
[1773152883994,4.93567861,2026.1,2025.4,0.45353162]
[1773152884406,0.32672254,2026.0,2025.3,0.0011]
[1773152884600,4.93567861,2026.1,2025.3,0.0011]
[1773152884809,0.001,2025.6,2025.3,0.45463162]
[1773152885914,0.001,2025.6,2025.3,0.0011]
[1773152886320,0.001,2025.6,2025.3,1.68898999]
[1773152886500,0.001,2025.6,2025.3,1.73836539]
[1773152886704,0.001,2025.6,2025.3,1.68898999]
[1773152888130,5.26217904,2026.4,2025.4,0.50290458]
[1773152888131,5.26178678,2026.4,2025.4,0.50290458]
[1773152888309,2.23577584,2026.3,2025.4,0.50290458]
[1773152888514,1.23365408,2026.5,2025.4,0.50290458]
[1773152888722,2.23563679,2026.6,2025.4,0.45353162]
[1773152889018,0.32772254,2026.5,2025.4,0.50290458]
[1773152889395,0.32772254,2026.5,2025.4,0.45353162]
[1773152889598,0.32772254,2027.2,2025.4,0.45353162]
[1773152889915,3.99972441,2027.1,2025.6,0.45353162]
[1773152890093,3.99972441,2027.1,2025.8,0.45353162]
[1773152890294,2.23528893,2027.1,2026.0,0.45353162]
[1773152892219,2.56301147,2027.1,2026.1,1.68742925]
[1773152892428,2.56301147,2027.1,2026.1,1.58742925]
[1773152892595,1.002,2027.0,2026.2,0.45353162]
[1773152893933,0.32772254,2026.9,2026.0,1.23392325]
[1773152894119,1.002,2026.9,2026.1,0.45353162]
[1773152894514,3.44071294,2026.9,2026.1,0.45353162]
[1773152896545,1.23347148,2026.8,2026.1,0.45353162]
[1773152896735,1.23347148,2026.8,2026.0,1.68744423]
[1773152897130,2.23547148,2026.8,2026.1,0.45353162]
[1773152897559,0.001,2026.6,2026.1,0.45353162]
[1773152898939,0.001,2026.6,2026.1,1.73678154]
[1773152899431,0.001,2026.6,2026.1,1.73677871]
[1773152900305,2.43971294,2026.6,2025.8,1.6875776]
[1773152900455,2.43871294,2026.3,2025.5,0.45353162]
[1773152900614,1.23389763,2026.1,2025.3,1.23548372]
[1773152901318,1.23389763,2026.1,2025.3,1.68901534]
[1773152901515,1.23388678,2026.2,2025.4,0.45353162]
[1773152901721,2.23688678,2026.2,2025.4,0.45353162]
[1773152901916,5.26238402,2026.5,2025.6,0.45353162]
[1773152901917,1.23365408,2026.5,2025.6,0.45353162]
[1773152902222,0.001,2026.6,2025.8,0.45353162]
[1773152902424,0.001,2026.6,2026.0,0.45353162]
[1773152902659,0.001,2026.6,2026.2,0.45353162]
[1773152903344,1.23338506,2027.0,2026.3,0.45353162]
[1773152903722,1.003,2027.2,2026.3,0.45353162]
[1773152904049,2.23623173,2027.2,2026.3,0.45353162]
[1773152904651,2.43871294,2027.1,2026.5,0.45353162]
[1773152904947,2.23623173,2027.2,2026.5,0.45353162]
[1773152905122,2.23623173,2027.2,2026.3,1.28312601]
[1773152905629,2.23623173,2027.2,2026.4,0.45353162]
[1773152906622,1.003,2027.1,2026.4,0.45353162]
[1773152906845,1.003,2027.1,2026.4,1.68721574]
[1773152907042,1.003,2027.1,2026.4,0.45353162]
[1773152907355,1.003,2027.1,2026.2,0.45353162]
[1773152908837,1.23334977,2027.0,2026.3,1.68730746]
[1773152909454,1.23334977,2027.0,2026.4,0.45353162]
[1773152910155,0.001,2026.9,2026.4,0.45353162]
[1773152910342,0.001,2026.9,2026.3,0.0011]
[1773152910343,2.76843548,2026.9,2026.3,0.0011]
[1773152910742,0.065536,2027.9,2026.6,2.43871294]
[1773152910952,0.065536,2027.9,2026.7,0.45353162]
[1773152910953,1.2328632,2027.8,2026.7,0.45353162]
[1773152911351,4.00129868,2027.8,2026.7,0.45353162]
[1773152912160,1.004,2027.7,2026.7,0.45353162]
[1773152913363,3.67169774,2027.6,2026.7,1.68703066]
[1773152913531,4.00142028,2027.6,2026.7,1.68703066]
[1773152914662,1.004,2027.5,2026.8,0.49537367]
[1773152915461,1.004,2027.5,2026.8,1.72883717]
[1773152915462,1.23310644,2027.4,2026.8,1.72883717]
[1773152916051,1.23310644,2027.4,2026.8,1.72884367]
[1773152916564,2.23709192,2027.5,2026.9,0.49537367]
[1773152916764,1.004,2027.5,2026.9,0.49537367]
[1773152917284,0.065536,2028.4,2026.9,0.49537367]
[1773152917576,2.76843548,2028.2,2027.1,0.49537367]
[1773152919061,5.93439241,2028.3,2027.1,0.49537367]
[1773152919062,5.93539241,2028.3,2027.1,0.49537367]
[1773152919455,5.93539241,2028.3,2027.3,0.49537367]
[1773152919653,5.93539241,2028.3,2027.0,0.49537367]
[1773152919654,0.32972254,2027.9,2027.0,0.49537367]
[1773152919832,0.32972254,2027.9,2027.0,1.72868664]
[1773152919833,2.43871294,2027.7,2027.0,1.72868664]
[1773152920032,2.43871294,2027.7,2027.1,0.49537367]
[1773152920033,1.005,2027.7,2027.1,0.49537367]
[1773152921541,1.005,2027.8,2027.2,1.72860176]
[1773152922170,1.005,2027.8,2027.2,0.49537367]
[1773152923067,0.47425258,2027.7,2026.9,1.72984584]
[1773152923268,0.47425258,2027.6,2026.9,1.77920645]
[1773152923433,1.23304562,2027.5,2026.9,0.0011]
[1773152923633,1.005,2027.8,2026.9,0.49647367]
[1773152923863,1.005,2027.7,2026.9,0.54581009]
[1773152924072,1.2328632,2027.8,2026.9,0.54581009]
[1773152924240,2.2378632,2027.8,2026.9,0.54581009]
[1773152924671,1.005,2027.8,2026.9,0.54581009]
[1773152924969,0.47425258,2027.7,2026.9,0.54581009]
[1773152925133,0.47425258,2027.7,2026.9,0.49647367]
[1773152925336,0.47425258,2027.7,2026.9,0.0011]
[1773152925765,1.70723738,2027.6,2026.9,1.23451062]
[1773152926062,4.93193923,2027.7,2027.0,0.04933399]
[1773152926063,1.70722176,2027.7,2027.0,0.04933399]
[1773152926369,0.47425258,2027.6,2026.9,0.0011]
[1773152927654,0.47425258,2027.6,2026.9,0.5090105]
[1773152927850,1.23304562,2027.5,2026.9,0.45967408]
[1773152928055,0.49148284,2027.4,2026.9,0.0011]
[1773152928656,1.23304562,2027.5,2026.9,0.0011]
[1773152929379,1.23304562,2027.5,2026.9,0.45967408]
[1773152929580,1.23304562,2027.5,2026.9,1.69307545]
[1773152929873,1.23304562,2027.5,2026.9,0.45967408]
[1773152930556,1.72452846,2027.5,2026.9,0.0011]
[1773152930750,1.72452846,2027.5,2026.9,1.69307527]
[1773152930751,1.23304562,2027.5,2026.9,1.69307527]
[1773152931275,4.93182557,2027.7,2027.0,0.50790807]
[1773152931454,1.2329614,2027.7,2027.0,0.50790807]